[Event "GrandPrix_29.05"]
[Site "Chess.com"]
[Date "2020.05.29"]
[Round "8"]
[White "Evgeny81"]
[Black "Kobalia"]
[Result "0-1"]
[WhiteElo "2392"]
[BlackElo "2345"]
[TimeControl "600+2"]
[EndTime "13:04:15 PDT"]
[Termination "Kobalia won on time"]

1. d4 {[%clk 0:10:01.9]} 1... d5 {[%clk 0:09:58.6]} 2. c4 {[%clk 0:10:02.3]}
2... c6 {[%clk 0:09:58.9]} 3. Nf3 {[%clk 0:10:03.1]} 3... Nf6 {[%clk 0:10:00]}
4. Nc3 {[%clk 0:10:03.9]} 4... e6 {[%clk 0:10:01]} 5. e3 {[%clk 0:09:43.6]} 5...
Nbd7 {[%clk 0:09:38.9]} 6. Qc2 {[%clk 0:09:43.3]} 6... Bd6 {[%clk 0:09:37.6]} 7.
b3 {[%clk 0:09:43.6]} 7... O-O {[%clk 0:09:32.3]} 8. Be2 {[%clk 0:09:41]} 8...
dxc4 {[%clk 0:09:13.6]} 9. bxc4 {[%clk 0:09:35.1]} 9... e5 {[%clk 0:09:14.8]}
10. O-O {[%clk 0:09:29.4]} 10... Re8 {[%clk 0:09:15.4]} 11. Bb2 {[%clk
0:09:05.9]} 11... e4 {[%clk 0:08:19.9]} 12. Nd2 {[%clk 0:09:00.5]} 12... Qe7
{[%clk 0:08:20.3]} 13. Rae1 {[%clk 0:07:58.6]} 13... Nf8 {[%clk 0:06:59]} 14. f3
{[%clk 0:07:56]} 14... exf3 {[%clk 0:06:56.1]} 15. Bxf3 {[%clk 0:07:56.3]} 15...
Qc7 {[%clk 0:06:43.9]} 16. h3 {[%clk 0:07:02.5]} 16... Bg3 {[%clk 0:06:16.6]}
17. Re2 {[%clk 0:06:58.3]} 17... Ng6 {[%clk 0:06:15.6]} 18. Nce4 {[%clk
0:06:38.8]} 18... Nxe4 {[%clk 0:06:14.9]} 19. Bxe4 {[%clk 0:05:58.5]} 19... f5
{[%clk 0:05:31.3]} 20. Bxf5 {[%clk 0:05:24.9]} 20... Bxf5 {[%clk 0:05:22.7]} 21.
Qxf5 {[%clk 0:02:45.5]} 21... Nf4 {[%clk 0:05:21.2]} 22. Rxf4 {[%clk 0:02:21.8]}
22... Bxf4 {[%clk 0:05:11.9]} 23. Qd3 {[%clk 0:02:07.4]} 23... Bh6 {[%clk
0:04:17.6]} 24. Nf3 {[%clk 0:02:02.9]} 24... Rf8 {[%clk 0:03:13.9]} 25. e4
{[%clk 0:01:53.5]} 25... Qg3 {[%clk 0:03:06.9]} 26. Bc3 {[%clk 0:01:31.8]} 26...
Rae8 {[%clk 0:02:45.7]} 27. Be1 {[%clk 0:01:27.2]} 27... Qg6 {[%clk 0:02:40.8]}
28. Ne5 {[%clk 0:01:08.9]} 28... Qe6 {[%clk 0:02:20.2]} 29. Nf3 {[%clk
0:00:51.1]} 29... Qg6 {[%clk 0:02:15.4]} 30. Ne5 {[%clk 0:00:49.8]} 30... Qe6
{[%clk 0:02:14.4]} 31. Nf3 {[%clk 0:00:48.6]} 31... Rf4 {[%clk 0:00:59.4]} 32.
e5 {[%clk 0:00:30.9]} 32... Rd8 {[%clk 0:00:59.7]} 33. Bg3 {[%clk 0:00:25.4]}
33... Rxf3 {[%clk 0:00:44]} 34. gxf3 {[%clk 0:00:12.5]} 34... Qxh3 {[%clk
0:00:43.9]} 35. Rg2 {[%clk 0:00:12.7]} 35... Qe6 {[%clk 0:00:33]} 36. f4 {[%clk
0:00:10.3]} 36... b5 {[%clk 0:00:27.6]} 37. cxb5 {[%clk 0:00:07.2]} 37... c5
{[%clk 0:00:28.6]} 38. f5 {[%clk 0:00:06.1]} 38... Qd5 {[%clk 0:00:29.3]} 39.
Bf2 {[%clk 0:00:06.6]} 39... cxd4 {[%clk 0:00:28]} 40. e6 {[%clk 0:00:06.2]}
40... Be3 {[%clk 0:00:18.3]} 41. Bxe3 {[%clk 0:00:05.7]} 41... dxe3 {[%clk
0:00:19.3]} 42. Qxd5 {[%clk 0:00:05.6]} 42... Rxd5 {[%clk 0:00:19.3]} 43. Rc2
{[%clk 0:00:05.5]} 43... Rd1+ {[%clk 0:00:18.2]} 44. Kg2 {[%clk 0:00:04.5]}
44... Rd2+ {[%clk 0:00:19.4]} 0-1

[Event "GrandPrix_29.05"]
[Site "Chess.com"]
[Date "2020.05.29"]
[Round "8"]
[White "SoltaniciR"]
[Black "SamadovRead"]
[Result "1-0"]
[WhiteElo "2174"]
[BlackElo "1965"]
[TimeControl "600+2"]
[EndTime "13:04:17 PDT"]
[Termination "SoltaniciR won by resignation"]

1. e4 {[%clk 0:10:01.9]} 1... c5 {[%clk 0:10:00.9]} 2. Nf3 {[%clk 0:09:56.2]}
2... d6 {[%clk 0:10:01.5]} 3. d4 {[%clk 0:09:56.9]} 3... cxd4 {[%clk 0:10:01.9]}
4. Nxd4 {[%clk 0:09:58.6]} 4... Nf6 {[%clk 0:10:02.9]} 5. Nc3 {[%clk 0:09:59.6]}
5... e6 {[%clk 0:10:03.9]} 6. Be3 {[%clk 0:10:00.7]} 6... a6 {[%clk 0:10:04]} 7.
f3 {[%clk 0:10:01.6]} 7... b5 {[%clk 0:10:04.1]} 8. Qd2 {[%clk 0:10:02.5]} 8...
Nbd7 {[%clk 0:10:04.2]} 9. g4 {[%clk 0:10:02.9]} 9... h6 {[%clk 0:10:04.3]} 10.
O-O-O {[%clk 0:10:02.7]} 10... b4 {[%clk 0:10:04.2]} 11. Nce2 {[%clk 0:10:02.1]}
11... Qc7 {[%clk 0:10:04.9]} 12. Bg2 {[%clk 0:09:57.9]} 12... Bb7 {[%clk
0:09:58.1]} 13. h4 {[%clk 0:09:53.5]} 13... Ne5 {[%clk 0:09:00.3]} 14. b3 {[%clk
0:09:50.8]} 14... Nfd7 {[%clk 0:08:11.6]} 15. g5 {[%clk 0:09:41.9]} 15... h5
{[%clk 0:07:47.1]} 16. f4 {[%clk 0:07:52.6]} 16... Ng4 {[%clk 0:07:40.4]} 17. g6
{[%clk 0:07:53.5]} 17... Nxe3 {[%clk 0:06:55.7]} 18. gxf7+ {[%clk 0:07:42.1]}
18... Kxf7 {[%clk 0:06:57.6]} 19. Qxe3 {[%clk 0:07:43.1]} 19... Nf6 {[%clk
0:05:42]} 20. Bh3 {[%clk 0:06:24.8]} 20... Re8 {[%clk 0:04:58]} 21. Ng3 {[%clk
0:03:34.8]} 21... Qc3 {[%clk 0:04:24]} 22. Qxc3 {[%clk 0:03:16]} 22... bxc3
{[%clk 0:04:25.9]} 23. Rhe1 {[%clk 0:03:16.9]} 23... e5 {[%clk 0:04:18.2]} 24.
Nde2 {[%clk 0:02:43.9]} 24... exf4 {[%clk 0:03:12.5]} 25. Nxf4 {[%clk
0:02:43.2]} 25... g6 {[%clk 0:03:12]} 26. Rf1 {[%clk 0:02:12.8]} 26... Bh6
{[%clk 0:02:52.2]} 27. Kb1 {[%clk 0:02:13.1]} 27... Bxf4 {[%clk 0:01:24.6]} 28.
Rxf4 {[%clk 0:02:15]} 28... Kg7 {[%clk 0:01:26]} 29. Rxd6 {[%clk 0:00:28.1]}
29... Nxe4 {[%clk 0:01:22.4]} 30. Rd7+ {[%clk 0:00:17.5]} 30... Kh6 {[%clk
0:01:22.8]} 31. Nxe4 {[%clk 0:00:14.1]} 31... Bxe4 {[%clk 0:01:20.5]} 32. Rc7
{[%clk 0:00:13.6]} 32... Bf5 {[%clk 0:01:14.8]} 33. Rxc3 {[%clk 0:00:12.8]}
33... Bxh3 {[%clk 0:00:46.4]} 34. Rxh3 {[%clk 0:00:14.7]} 34... Re2 {[%clk
0:00:40.1]} 35. Rc3 {[%clk 0:00:13.6]} 35... Rhe8 {[%clk 0:00:37.4]} 36. Rc6
{[%clk 0:00:13.2]} 36... R8e4 {[%clk 0:00:31.9]} 37. Rff6 {[%clk 0:00:04.4]}
37... Rxh4 {[%clk 0:00:28.5]} 38. Rxg6+ {[%clk 0:00:04.7]} 38... Kh7 {[%clk
0:00:30.2]} 39. Rgd6 {[%clk 0:00:05.6]} 39... Re7 {[%clk 0:00:25.6]} 40. Rxa6
{[%clk 0:00:06.4]} 40... Rh1+ {[%clk 0:00:25.9]} 41. Kb2 {[%clk 0:00:07.3]}
41... h4 {[%clk 0:00:27.4]} 42. Rh6+ {[%clk 0:00:07.9]} 42... Kg7 {[%clk
0:00:28.8]} 43. Rag6+ {[%clk 0:00:07.3]} 43... Kf7 {[%clk 0:00:30.1]} 44. Rg4
{[%clk 0:00:06.7]} 44... h3 {[%clk 0:00:29.9]} 45. Rg3 {[%clk 0:00:07.6]} 45...
h2 {[%clk 0:00:31.2]} 46. Rg2 {[%clk 0:00:08.5]} 46... Ree1 {[%clk 0:00:29.4]}
47. Rhxh2 {[%clk 0:00:09.2]} 47... Rhf1 {[%clk 0:00:30.6]} 48. Rf2+ {[%clk
0:00:09.3]} 48... Ke6 {[%clk 0:00:32.5]} 49. Rxf1 {[%clk 0:00:10.1]} 49... Rxf1
{[%clk 0:00:34.4]} 50. Rd2 {[%clk 0:00:11.3]} 1-0

[Event "GrandPrix_29.05"]
[Site "Chess.com"]
[Date "2020.05.29"]
[Round "8"]
[White "ZefirKa"]
[Black "Inkalubo"]
[Result "1-0"]
[WhiteElo "2064"]
[BlackElo "1775"]
[TimeControl "600+2"]
[EndTime "13:04:24 PDT"]
[Termination "ZefirKa won on time"]

1. e4 {[%clk 0:10:01.9]} 1... Nf6 {[%clk 0:10:00.1]} 2. e5 {[%clk 0:09:57.6]}
2... Nd5 {[%clk 0:10:00.6]} 3. d4 {[%clk 0:09:58.7]} 3... d6 {[%clk 0:10:01.3]}
4. Nf3 {[%clk 0:09:59.8]} 4... g6 {[%clk 0:10:01.8]} 5. Bc4 {[%clk 0:09:58.4]}
5... c6 {[%clk 0:10:02.4]} 6. O-O {[%clk 0:09:15.1]} 6... Bg7 {[%clk 0:10:01.8]}
7. h3 {[%clk 0:09:08.1]} 7... O-O {[%clk 0:10:00.7]} 8. Re1 {[%clk 0:09:03.4]}
8... b5 {[%clk 0:09:40.5]} 9. Bb3 {[%clk 0:08:57]} 9... a5 {[%clk 0:09:18.2]}
10. a4 {[%clk 0:08:54.2]} 10... b4 {[%clk 0:09:17.6]} 11. c4 {[%clk 0:08:32]}
11... bxc3 {[%clk 0:09:15.4]} 12. bxc3 {[%clk 0:08:33.1]} 12... dxe5 {[%clk
0:09:05.4]} 13. Nxe5 {[%clk 0:08:31.7]} 13... Be6 {[%clk 0:09:00]} 14. Qc2
{[%clk 0:08:04.2]} 14... Qc7 {[%clk 0:08:40.9]} 15. Ba3 {[%clk 0:08:02.4]} 15...
Na6 {[%clk 0:08:27.4]} 16. Qa2 {[%clk 0:06:48.3]} 16... Rab8 {[%clk 0:08:15.1]}
17. Bc4 {[%clk 0:06:41]} 17... Qb7 {[%clk 0:07:25.7]} 18. Nd3 {[%clk 0:06:27]}
18... Ndc7 {[%clk 0:05:56.6]} 19. Bxe7 {[%clk 0:06:09.2]} 19... Rfe8 {[%clk
0:05:56.6]} 20. Bd6 {[%clk 0:05:26.6]} 20... Bxc4 {[%clk 0:05:36]} 21. Qxc4
{[%clk 0:05:21.7]} 21... Rxe1+ {[%clk 0:05:32.8]} 22. Nxe1 {[%clk 0:05:23.6]}
22... Qb2 {[%clk 0:05:32.2]} 23. Ra2 {[%clk 0:04:16]} 23... Qxb1 {[%clk
0:05:26.6]} 24. Re2 {[%clk 0:04:17.4]} 24... Re8 {[%clk 0:05:10.3]} 25. Kh2
{[%clk 0:04:09.7]} 25... Rxe2 {[%clk 0:03:43.6]} 26. Qxe2 {[%clk 0:04:11.6]}
26... Qb8 {[%clk 0:03:43.9]} 27. Nf3 {[%clk 0:03:14.7]} 27... Qd8 {[%clk
0:03:37.8]} 28. Bg3 {[%clk 0:03:10.2]} 28... Nb8 {[%clk 0:03:19.9]} 29. Qb2
{[%clk 0:03:00.2]} 29... Bf8 {[%clk 0:02:59.3]} 30. Qb6 {[%clk 0:02:49]} 30...
Bd6 {[%clk 0:02:52]} 31. Qxa5 {[%clk 0:02:29]} 31... Bxg3+ {[%clk 0:02:48.7]}
32. fxg3 {[%clk 0:02:30.9]} 32... Ne6 {[%clk 0:02:35.9]} 33. Qa8 {[%clk
0:02:12]} 33... Kg7 {[%clk 0:02:09.6]} 34. a5 {[%clk 0:02:09.1]} 34... Nc7
{[%clk 0:01:37.5]} 35. Qb7 {[%clk 0:02:05.4]} 35... Nca6 {[%clk 0:01:38]} 36.
Ne5 {[%clk 0:02:04.3]} 36... Qc7 {[%clk 0:01:35.6]} 37. Qb3 {[%clk 0:01:57.7]}
37... c5 {[%clk 0:01:32.1]} 38. Qb5 {[%clk 0:01:42.5]} 38... cxd4 {[%clk
0:01:15.4]} 39. cxd4 {[%clk 0:01:44.4]} 39... Qd6 {[%clk 0:00:58.5]} 40. Qc4
{[%clk 0:01:32.1]} 40... Qe6 {[%clk 0:00:54.6]} 41. Qc3 {[%clk 0:01:25.3]} 41...
Qd5 {[%clk 0:00:43.4]} 42. Nd3 {[%clk 0:01:11.1]} 42... Qc6 {[%clk 0:00:17]} 43.
Qb2 {[%clk 0:00:54.9]} 43... Nd7 {[%clk 0:00:14.5]} 44. d5+ {[%clk 0:00:31.3]}
44... Qf6 {[%clk 0:00:14.1]} 45. Qb5 {[%clk 0:00:31]} 45... Qd6 {[%clk
0:00:07.5]} 46. Nf4 {[%clk 0:00:17.8]} 46... Ndc5 {[%clk 0:00:03.2]} 47. Qe8
{[%clk 0:00:15.6]} 1-0

[Event "GrandPrix_29.05"]
[Site "Chess.com"]
[Date "2020.05.29"]
[Round "8"]
[White "chessfreak35"]
[Black "Murad_Ibrahimli"]
[Result "1/2-1/2"]
[WhiteElo "2535"]
[BlackElo "2609"]
[TimeControl "600+2"]
[EndTime "13:04:34 PDT"]
[Termination "Game drawn by stalemate"]

1. e4 {[%clk 0:10:01.9]} 1... c5 {[%clk 0:09:54.4]} 2. Nf3 {[%clk 0:10:02.6]}
2... d6 {[%clk 0:09:54.5]} 3. d4 {[%clk 0:10:03.8]} 3... cxd4 {[%clk 0:09:55.9]}
4. Nxd4 {[%clk 0:10:05.1]} 4... Nf6 {[%clk 0:09:57.2]} 5. Nc3 {[%clk 0:10:06.7]}
5... a6 {[%clk 0:09:57.9]} 6. h4 {[%clk 0:10:05.5]} 6... e5 {[%clk 0:09:54]} 7.
Nb3 {[%clk 0:10:06.1]} 7... Be7 {[%clk 0:09:47.9]} 8. Bg5 {[%clk 0:10:06.3]}
8... Be6 {[%clk 0:09:46.8]} 9. Bxf6 {[%clk 0:10:02.8]} 9... Bxf6 {[%clk
0:09:46.6]} 10. g3 {[%clk 0:10:04.2]} 10... Nd7 {[%clk 0:09:44.8]} 11. Qxd6
{[%clk 0:09:56.7]} 11... Be7 {[%clk 0:09:44.8]} 12. Qd2 {[%clk 0:09:54.4]} 12...
Rc8 {[%clk 0:09:45.6]} 13. a3 {[%clk 0:09:42.6]} 13... O-O {[%clk 0:09:31.5]}
14. Bh3 {[%clk 0:09:39.5]} 14... Nb6 {[%clk 0:08:58.5]} 15. Qxd8 {[%clk
0:07:34.2]} 15... Rfxd8 {[%clk 0:08:53.8]} 16. Bxe6 {[%clk 0:07:35.5]} 16...
fxe6 {[%clk 0:08:53.9]} 17. Ke2 {[%clk 0:07:31.3]} 17... Nc4 {[%clk 0:08:52.1]}
18. Nd1 {[%clk 0:07:31.5]} 18... Nxb2 {[%clk 0:08:40.3]} 19. Ne3 {[%clk
0:07:23.2]} 19... Na4 {[%clk 0:08:38.7]} 20. c4 {[%clk 0:06:22.5]} 20... Nc3+
{[%clk 0:08:28.7]} 21. Kf3 {[%clk 0:06:23.4]} 21... Rf8+ {[%clk 0:08:28.8]} 22.
Kg2 {[%clk 0:06:24.8]} 22... Nxe4 {[%clk 0:08:29.8]} 23. Ra2 {[%clk 0:06:14.9]}
23... b5 {[%clk 0:08:15.5]} 24. Rc1 {[%clk 0:06:00.5]} 24... Rfd8 {[%clk
0:06:51.8]} 25. Kf3 {[%clk 0:04:50.8]} 25... Nd6 {[%clk 0:05:49]} 26. Rac2
{[%clk 0:04:31.8]} 26... Nxc4 {[%clk 0:05:06.7]} 27. Nxc4 {[%clk 0:04:25.9]}
27... Rxc4 {[%clk 0:05:06]} 28. Rxc4 {[%clk 0:04:21.6]} 28... bxc4 {[%clk
0:05:05.9]} 29. Na5 {[%clk 0:04:23]} 29... Rf8+ {[%clk 0:03:53.7]} 30. Ke2
{[%clk 0:04:14]} 30... Bc5 {[%clk 0:03:43.3]} 31. f3 {[%clk 0:04:03.2]} 31...
Bxa3 {[%clk 0:03:39.9]} 32. Rxc4 {[%clk 0:04:03.7]} 32... Rb8 {[%clk 0:03:11.9]}
33. Rc6 {[%clk 0:03:44.5]} 33... Rb2+ {[%clk 0:02:57.7]} 34. Kd3 {[%clk
0:03:44.9]} 34... Rf2 {[%clk 0:02:22.5]} 35. Ke4 {[%clk 0:03:37]} 35... Re2+
{[%clk 0:02:02.6]} 36. Kd3 {[%clk 0:03:38]} 36... Rg2 {[%clk 0:01:54.2]} 37. g4
{[%clk 0:03:38.7]} 37... Be7 {[%clk 0:01:41]} 38. Rxa6 {[%clk 0:03:21.1]} 38...
Bxh4 {[%clk 0:01:38.5]} 39. Rxe6 {[%clk 0:03:21]} 39... Bf6 {[%clk 0:01:33.3]}
40. Nc4 {[%clk 0:03:20]} 40... Kf7 {[%clk 0:01:31.5]} 41. Rb6 {[%clk 0:03:19.7]}
41... h6 {[%clk 0:01:09.1]} 42. Nd6+ {[%clk 0:03:19.2]} 42... Kg6 {[%clk
0:01:09.5]} 43. Ne4 {[%clk 0:03:20.7]} 43... Ra2 {[%clk 0:01:07.4]} 44. Ke3
{[%clk 0:03:17.8]} 44... Ra3+ {[%clk 0:01:06.5]} 45. Kf2 {[%clk 0:03:18.7]}
45... Kf7 {[%clk 0:01:06]} 46. Kg3 {[%clk 0:03:02.3]} 46... Be7 {[%clk
0:01:04.5]} 47. Rb5 {[%clk 0:03:01.4]} 47... Ke6 {[%clk 0:00:46.1]} 48. Rb6+
{[%clk 0:03:02.1]} 48... Kd5 {[%clk 0:00:43.4]} 49. Rb7 {[%clk 0:02:55.7]} 49...
Ke6 {[%clk 0:00:44.4]} 50. Rb6+ {[%clk 0:02:55.6]} 50... Kf7 {[%clk 0:00:44.4]}
51. Rb5 {[%clk 0:02:56.2]} 51... Bf6 {[%clk 0:00:42.9]} 52. Rb7+ {[%clk
0:02:52.5]} 52... Kg6 {[%clk 0:00:43.3]} 53. Rb6 {[%clk 0:02:53.7]} 53... Rd3
{[%clk 0:00:44.2]} 54. Ra6 {[%clk 0:02:45.2]} 54... Rd5 {[%clk 0:00:40.8]} 55.
Rb6 {[%clk 0:02:34.3]} 55... Kf7 {[%clk 0:00:41.5]} 56. Nd6+ {[%clk 0:02:18.6]}
56... Ke7 {[%clk 0:00:40]} 57. Nf5+ {[%clk 0:02:17.3]} 57... Kf8 {[%clk
0:00:39]} 58. Rb8+ {[%clk 0:01:42.8]} 58... Rd8 {[%clk 0:00:39.3]} 59. Rxd8+
{[%clk 0:01:30.7]} 59... Bxd8 {[%clk 0:00:37.7]} 60. Nd6 {[%clk 0:01:31.5]}
60... g6 {[%clk 0:00:37.6]} 61. Ne4 {[%clk 0:01:32.6]} 61... Kf7 {[%clk
0:00:37.3]} 62. Nf2 {[%clk 0:01:30.7]} 62... Ke6 {[%clk 0:00:35.8]} 63. Ne4
{[%clk 0:01:29.2]} 63... h5 {[%clk 0:00:35]} 64. gxh5 {[%clk 0:01:30.1]} 64...
gxh5 {[%clk 0:00:35.9]} 65. Nf2 {[%clk 0:01:30.9]} 65... Kf5 {[%clk 0:00:35.3]}
66. Nd3 {[%clk 0:01:31.9]} 66... Bf6 {[%clk 0:00:27.7]} 67. Kg2 {[%clk
0:01:31.6]} 67... h4 {[%clk 0:00:23.6]} 68. Nxe5 {[%clk 0:01:31.2]} 68... Kxe5
{[%clk 0:00:24]} 69. f4+ {[%clk 0:01:32.6]} 69... Kxf4 {[%clk 0:00:24.5]} 70.
Kh1 {[%clk 0:01:34.4]} 70... Kg3 {[%clk 0:00:24.8]} 71. Kg1 {[%clk 0:01:35.8]}
71... h3 {[%clk 0:00:25.7]} 72. Kh1 {[%clk 0:01:37.1]} 72... h2 {[%clk
0:00:26.7]} 1/2-1/2

[Event "GrandPrix_29.05"]
[Site "Chess.com"]
[Date "2020.05.29"]
[Round "8"]
[White "Supernotar"]
[Black "Tyoma88888"]
[Result "1/2-1/2"]
[WhiteElo "2122"]
[BlackElo "2175"]
[TimeControl "600+2"]
[EndTime "13:04:38 PDT"]
[Termination "Game drawn by repetition"]

1. d4 {[%clk 0:10:01.9]} 1... d5 {[%clk 0:10:00.7]} 2. c4 {[%clk 0:09:50]} 2...
e6 {[%clk 0:10:01.8]} 3. Nf3 {[%clk 0:09:50.6]} 3... Nf6 {[%clk 0:10:02.8]} 4.
e3 {[%clk 0:09:37]} 4... Be7 {[%clk 0:10:03.6]} 5. Nbd2 {[%clk 0:09:37.6]} 5...
O-O {[%clk 0:10:04.4]} 6. Bd3 {[%clk 0:09:38.8]} 6... b6 {[%clk 0:10:04.6]} 7.
O-O {[%clk 0:09:39]} 7... Bb7 {[%clk 0:10:05.9]} 8. b3 {[%clk 0:09:40.4]} 8...
Nbd7 {[%clk 0:10:07.3]} 9. Bb2 {[%clk 0:09:41.3]} 9... c5 {[%clk 0:10:08.9]} 10.
Qe2 {[%clk 0:09:42.5]} 10... Rc8 {[%clk 0:10:09.7]} 11. Rad1 {[%clk 0:09:42.6]}
11... Rc7 {[%clk 0:10:11.2]} 12. e4 {[%clk 0:09:43.4]} 12... dxe4 {[%clk
0:10:08.5]} 13. Nxe4 {[%clk 0:09:44.2]} 13... Nxe4 {[%clk 0:10:10.4]} 14. Bxe4
{[%clk 0:09:45.2]} 14... Bxe4 {[%clk 0:10:12.3]} 15. Qxe4 {[%clk 0:09:46.4]}
15... Nf6 {[%clk 0:10:13.2]} 16. Qe2 {[%clk 0:09:47]} 16... Rd7 {[%clk
0:10:08.3]} 17. Ne5 {[%clk 0:09:45.5]} 17... Rd6 {[%clk 0:10:03.1]} 18. dxc5
{[%clk 0:09:43.5]} 18... bxc5 {[%clk 0:10:01.1]} 19. Nc6 {[%clk 0:09:42.9]}
19... Qc7 {[%clk 0:09:53.7]} 20. Nxe7+ {[%clk 0:09:41.3]} 20... Qxe7 {[%clk
0:09:55.6]} 21. Rxd6 {[%clk 0:09:25.7]} 21... Qxd6 {[%clk 0:09:55.5]} 22. Rd1
{[%clk 0:09:26.8]} 22... Qf4 {[%clk 0:09:45.4]} 23. Be5 {[%clk 0:09:21.3]} 23...
Qf5 {[%clk 0:09:42.7]} 24. f3 {[%clk 0:09:12.8]} 24... h6 {[%clk 0:09:41.7]} 25.
Rd6 {[%clk 0:09:00.5]} 25... Qb1+ {[%clk 0:09:27.4]} 26. Kf2 {[%clk 0:09:00.7]}
26... Qf5 {[%clk 0:09:28.1]} 27. Kg1 {[%clk 0:08:51]} 27... Qb1+ {[%clk
0:09:28.5]} 28. Rd1 {[%clk 0:08:45.1]} 28... Qf5 {[%clk 0:09:28.9]} 29. g4
{[%clk 0:08:41.1]} 29... Qg5 {[%clk 0:09:03.7]} 30. Kg2 {[%clk 0:08:28.3]} 30...
Rc8 {[%clk 0:08:53.8]} 31. Rd6 {[%clk 0:08:12.9]} 31... a5 {[%clk 0:07:34.6]}
32. Bg3 {[%clk 0:07:53.8]} 32... Qc1 {[%clk 0:07:22.4]} 33. Rd1 {[%clk
0:07:34.8]} 33... Qa3 {[%clk 0:07:08.4]} 34. Be5 {[%clk 0:07:28.7]} 34... a4
{[%clk 0:07:07.2]} 35. Rd3 {[%clk 0:07:24.9]} 35... axb3 {[%clk 0:06:34.8]} 36.
axb3 {[%clk 0:07:26.8]} 36... Qc1 {[%clk 0:06:35.4]} 37. Qd2 {[%clk 0:07:03.9]}
37... Qxd2+ {[%clk 0:04:39.8]} 38. Rxd2 {[%clk 0:07:03.3]} 38... Ra8 {[%clk
0:04:41.7]} 39. h4 {[%clk 0:06:48.5]} 39... Ra7 {[%clk 0:04:39.1]} 40. Rd8+
{[%clk 0:06:42.1]} 40... Kh7 {[%clk 0:04:36.9]} 41. Rc8 {[%clk 0:05:56.1]} 41...
Nd7 {[%clk 0:04:34]} 42. Bd6 {[%clk 0:05:54.1]} 42... Rb7 {[%clk 0:03:38.4]} 43.
Rc7 {[%clk 0:05:50.4]} 43... Rxc7 {[%clk 0:03:33]} 44. Bxc7 {[%clk 0:05:51.5]}
44... h5 {[%clk 0:03:29.8]} 45. Bd6 {[%clk 0:05:46]} 45... hxg4 {[%clk
0:03:21.8]} 46. fxg4 {[%clk 0:05:46]} 46... Kg6 {[%clk 0:03:16.3]} 47. Kf3
{[%clk 0:05:45.9]} 47... f5 {[%clk 0:03:10]} 48. Kf4 {[%clk 0:05:34.7]} 48...
fxg4 {[%clk 0:02:36.4]} 49. Kxg4 {[%clk 0:05:35]} 49... e5 {[%clk 0:02:33.5]}
50. b4 {[%clk 0:05:05.3]} 50... cxb4 {[%clk 0:02:27.4]} 51. Bxb4 {[%clk
0:05:06]} 51... Kf6 {[%clk 0:02:02.7]} 52. c5 {[%clk 0:04:57.9]} 52... Nb8
{[%clk 0:02:02.3]} 53. Bc3 {[%clk 0:04:50.3]} 53... Nc6 {[%clk 0:01:59.3]} 54.
h5 {[%clk 0:04:51.2]} 54... Nb8 {[%clk 0:01:52]} 55. Ba5 {[%clk 0:04:38.8]}
55... Nc6 {[%clk 0:01:46.2]} 56. Bc7 {[%clk 0:04:36.6]} 56... Nd4 {[%clk
0:01:04.9]} 57. Bd8+ {[%clk 0:04:34.3]} 57... Kf7 {[%clk 0:01:02.3]} 58. Bg5
{[%clk 0:04:11.1]} 58... Ke6 {[%clk 0:00:55.1]} 59. Be3 {[%clk 0:04:07.3]} 59...
Kd5 {[%clk 0:00:52]} 60. Kg5 {[%clk 0:03:57.3]} 60... Kxc5 {[%clk 0:00:37.6]}
61. Kg6 {[%clk 0:03:58]} 61... Kd5 {[%clk 0:00:38.4]} 62. Kxg7 {[%clk
0:02:24.2]} 62... Nf5+ {[%clk 0:00:26.9]} 63. Kg6 {[%clk 0:02:20.8]} 63... Ke6
{[%clk 0:00:12.9]} 64. Bg5 {[%clk 0:02:18.7]} 64... e4 {[%clk 0:00:13.8]} 65.
Bf4 {[%clk 0:02:17]} 65... Nh4+ {[%clk 0:00:09.5]} 66. Kg7 {[%clk 0:02:09.5]}
66... Nf5+ {[%clk 0:00:11.4]} 67. Kg6 {[%clk 0:02:07.5]} 67... Nh4+ {[%clk
0:00:10.8]} 68. Kg7 {[%clk 0:01:39.6]} 68... Nf5+ {[%clk 0:00:12.7]} 69. Kg6
{[%clk 0:01:29.6]} 1/2-1/2

[Event "GrandPrix_29.05"]
[Site "Chess.com"]
[Date "2020.05.29"]
[Round "8"]
[White "SantoBlue"]
[Black "Lukianoo"]
[Result "1-0"]
[WhiteElo "2552"]
[BlackElo "2524"]
[TimeControl "600+2"]
[EndTime "13:04:46 PDT"]
[Termination "SantoBlue won on time"]

1. Nf3 {[%clk 0:09:58.3]} 1... Nf6 {[%clk 0:09:52.7]} 2. g3 {[%clk 0:09:59.4]}
2... b5 {[%clk 0:09:53.3]} 3. Bg2 {[%clk 0:10:00.2]} 3... Bb7 {[%clk 0:09:54.6]}
4. O-O {[%clk 0:10:01.2]} 4... e6 {[%clk 0:09:55]} 5. b3 {[%clk 0:09:54.6]} 5...
c5 {[%clk 0:09:54.7]} 6. c4 {[%clk 0:09:42]} 6... a6 {[%clk 0:09:55.3]} 7. Nc3
{[%clk 0:09:39.1]} 7... Qb6 {[%clk 0:09:49.9]} 8. Bb2 {[%clk 0:09:36.2]} 8...
Be7 {[%clk 0:09:49.2]} 9. d3 {[%clk 0:09:11]} 9... O-O {[%clk 0:09:46]} 10. e4
{[%clk 0:09:12]} 10... d6 {[%clk 0:09:46.3]} 11. Nd2 {[%clk 0:09:09.3]} 11...
Nc6 {[%clk 0:09:43]} 12. f4 {[%clk 0:09:08.7]} 12... Nd4 {[%clk 0:09:42]} 13. g4
{[%clk 0:09:08.4]} 13... Nd7 {[%clk 0:09:12.2]} 14. g5 {[%clk 0:09:05.1]} 14...
e5 {[%clk 0:09:12.1]} 15. Qg4 {[%clk 0:08:56.2]} 15... Qd8 {[%clk 0:09:03.7]}
16. Nd5 {[%clk 0:08:30.2]} 16... Bxd5 {[%clk 0:08:54.9]} 17. exd5 {[%clk
0:08:17.6]} 17... Nc2 {[%clk 0:08:06]} 18. Ne4 {[%clk 0:07:30.4]} 18... Ne3
{[%clk 0:07:40.1]} 19. Qh3 {[%clk 0:06:36.9]} 19... Nxf1 {[%clk 0:07:39.7]} 20.
Rxf1 {[%clk 0:06:38.8]} 20... exf4 {[%clk 0:07:28.3]} 21. Rxf4 {[%clk
0:04:59.5]} 21... Ne5 {[%clk 0:06:45.1]} 22. Nf6+ {[%clk 0:04:24.5]} 22... Bxf6
{[%clk 0:05:33.4]} 23. Be4 {[%clk 0:03:35.5]} 23... Ng6 {[%clk 0:04:59.4]} 24.
gxf6 {[%clk 0:03:29]} 24... Ra7 {[%clk 0:02:13]} 25. fxg7 {[%clk 0:02:37.9]}
25... Re8 {[%clk 0:02:12]} 26. Qh5 {[%clk 0:01:18.6]} 26... f6 {[%clk
0:01:02.4]} 27. Bxg6 {[%clk 0:00:56.9]} 27... Rxg7 {[%clk 0:00:59.7]} 28. Bxf6
{[%clk 0:00:26.1]} 28... hxg6 {[%clk 0:00:34.2]} 29. Qh6 {[%clk 0:00:22.9]}
29... Qd7 {[%clk 0:00:15.4]} 30. Rh4 {[%clk 0:00:23.9]} 30... Re1+ {[%clk
0:00:11.1]} 31. Kf2 {[%clk 0:00:16.6]} 31... Qf5+ {[%clk 0:00:05]} 32. Rf4
{[%clk 0:00:17.7]} 32... Rf1+ {[%clk 0:00:05.9]} 33. Kxf1 {[%clk 0:00:16]} 33...
Qxd3+ {[%clk 0:00:07]} 34. Kf2 {[%clk 0:00:12.1]} 34... Qd2+ {[%clk 0:00:07.2]}
35. Kg3 {[%clk 0:00:10.6]} 35... Qe3+ {[%clk 0:00:07.3]} 36. Kg4 {[%clk
0:00:10.2]} 36... Qe2+ {[%clk 0:00:07.4]} 37. Rf3 {[%clk 0:00:07.3]} 37... Qg2+
{[%clk 0:00:07.9]} 38. Rg3 {[%clk 0:00:08.3]} 38... Qe2+ {[%clk 0:00:08.6]} 39.
Rf3 {[%clk 0:00:05.2]} 39... Qg2+ {[%clk 0:00:06.7]} 40. Kf4 {[%clk 0:00:04.3]}
40... Qd2+ {[%clk 0:00:07.2]} 41. Re3 {[%clk 0:00:04.8]} 41... Qf2+ {[%clk
0:00:08.3]} 42. Kg4 {[%clk 0:00:05.5]} 42... Qg2+ {[%clk 0:00:08.9]} 43. Kh4
{[%clk 0:00:06]} 43... Qxh2+ {[%clk 0:00:07.9]} 44. Rh3 {[%clk 0:00:07]} 44...
Qf2+ {[%clk 0:00:08]} 45. Kg4 {[%clk 0:00:07.1]} 45... Qxf6 {[%clk 0:00:06.9]}
46. Qh8+ {[%clk 0:00:06.6]} 46... Kf7 {[%clk 0:00:07.1]} 47. Rf3 {[%clk
0:00:08.2]} 47... Qxf3+ {[%clk 0:00:05.1]} 48. Kxf3 {[%clk 0:00:10.1]} 48... g5
{[%clk 0:00:06.6]} 49. Kg4 {[%clk 0:00:10.9]} 49... Rg6 {[%clk 0:00:05.4]} 50.
Qh7+ {[%clk 0:00:11.9]} 1-0